bitfinex/quotes_ETHUSD_20250824
["timestamp","ask_amount","ask_price","bid_price","bid_amount"]
[1756006413974,8.90213213,4775.7,4775.6,0.744]
[1756006414144,10.51313213,4775.7,4775.6,0.744]
[1756006414557,6.99513213,4775.7,4775.6,0.744]
[1756006414745,8.51870085,4775.7,4775.6,0.744]
[1756006418157,9.08018299,4775.7,4775.6,0.744]
[1756006418468,9.07818299,4775.7,4775.6,0.744]
[1756006418778,8.41818299,4775.7,4775.6,0.744]
[1756006418981,4.90218299,4775.7,4775.6,0.744]
[1756006419193,5.67881598,4775.7,4775.6,0.744]
[1756006420186,2.16281598,4775.7,4775.6,0.744]
[1756006420495,5.2318,4775.7,4775.6,2.83797772]
[1756006420733,5.127,4775.7,4775.6,0.744]
[1756006421682,0.002,4775.8,4775.6,2.83797772]
[1756006422034,0.002,4775.8,4775.7,2.82653164]
[1756006422332,0.002,4775.8,4775.7,3.12073164]
[1756006422532,0.002,4775.8,4775.7,3.22553164]
[1756006426385,0.002,4775.8,4775.7,6.22553164]
[1756006434231,3.8148,4775.8,4775.7,0.1048]
[1756006434406,4.2586,4775.8,4775.7,0.1048]
[1756006434606,4.2586,4775.8,4775.6,0.001]
[1756006434810,0.4438,4775.7,4775.6,0.001]
[1756006435129,1.53984527,4775.7,4775.6,0.001]
[1756006441512,1.62377027,4775.7,4775.6,0.001]
[1756006442497,4.69197027,4775.7,4775.6,0.001]
[1756006442717,4.69197027,4775.7,4775.6,0.3038]
[1756006442718,0.083925,4775.7,4775.6,0.3038]
[1756006443125,0.083925,4775.7,4775.6,0.7476]
[1756006443404,0.002,4775.8,4775.6,0.7476]
[1756006443405,3.515,4775.8,4775.7,2.09393387]
[1756006443704,3.515,4775.8,4775.7,2.84053387]
[1756006444896,3.515,4775.8,4775.7,3.20808795]
[1756006445096,0.002,4775.8,4775.7,3.20808795]
[1756006445300,0.002,4775.8,4775.7,6.20808795]
[1756006453916,0.022,4776.8,4776.7,2.0934955]
[1756006454129,0.022,4776.8,4776.7,9.0120955]
[1756006454448,0.022,4776.8,4776.7,9.4558955]
[1756006459667,0.022,4776.8,4776.7,5.5010955]
[1756006459969,0.022,4776.8,4776.7,2.0934955]
[1756006459970,0.7879,4776.8,4776.7,2.0934955]
[1756006461238,0.3364,4776.8,4776.7,2.0934955]
[1756006461459,0.7879,4776.8,4776.7,2.0934955]
[1756006466955,0.3364,4776.8,4776.7,2.0934955]
[1756006471170,0.022,4776.8,4776.7,18.08670307]
[1756006471369,0.022,4776.8,4776.7,17.35751648]
[1756006471539,0.022,4776.8,4776.7,17.46231648]
[1756006471932,0.022,4776.8,4776.7,9.4722955]
[1756006472132,0.022,4776.8,4776.7,10.62888209]
[1756006473170,0.022,4776.8,4776.7,18.61890307]
[1756006473171,1e-08,4776.8,4776.7,18.61890307]
[1756006473672,1e-08,4776.8,4776.7,18.70277507]
[1756006477852,1e-08,4777.3,4777.2,2.09327639]
[1756006478057,1e-08,4777.3,4777.2,8.89927639]
[1756006478265,1e-08,4777.3,4777.2,10.57333842]
[1756006478687,1e-08,4777.3,4777.2,10.65719842]
[1756006483876,1e-08,4777.3,4777.2,10.18719842]
[1756006484078,0.30890001,4777.3,4777.2,9.81033842]
[1756006484284,0.30890001,4777.3,4777.2,6.29733842]
[1756006484480,0.30890001,4777.3,4777.2,9.81033842]
[1756006485549,0.76580001,4777.3,4777.2,8.71107639]
[1756006485973,0.30890001,4777.3,4777.2,8.71107639]
[1756006487188,0.76580001,4777.3,4777.2,8.71107639]
[1756006488150,1e-08,4777.3,4777.2,8.71107639]
[1756006488885,0.31200001,4777.3,4777.2,8.71107639]
[1756006495191,1e-08,4777.3,4777.2,9.00557639]
[1756006495387,1e-08,4777.3,4777.2,8.71107639]
[1756006495690,1e-08,4777.3,4777.2,9.00557639]
[1756006497975,1e-08,4777.3,4777.2,10.60550842]
[1756006499691,0.30130001,4777.3,4777.2,3.35260842]
[1756006499901,0.76580001,4777.3,4777.2,5.60227639]
[1756006500970,0.76580001,4777.3,4777.1,2.09431172]
[1756006501172,0.4645,4777.2,4777.1,2.09432021]
[1756006501511,0.7674,4777.2,4777.1,2.09432021]
[1756006502475,0.3029,4777.2,4777.1,2.09432021]
[1756006503207,1e-08,4777.3,4777.2,2.09327639]
[1756006503506,1e-08,4777.3,4777.2,5.60227639]
[1756006503886,1e-08,4777.3,4777.2,5.89677639]
[1756006508882,1e-08,4777.3,4777.2,6.34217639]
[1756006509809,1e-08,4777.3,4777.2,6.44697639]
[1756006510010,1e-08,4777.3,4777.2,7.91942362]
[1756006513078,1e-08,4777.3,4777.2,18.9094446]
[1756006513916,1e-08,4777.3,4777.2,18.9933016]
[1756006518713,1e-08,4777.3,4777.2,19.6533016]
[1756006519681,1e-08,4777.3,4777.2,6.75438062]
[1756006519882,0.71730001,4777.3,4777.2,5.70707639]
[1756006520198,0.71730001,4777.3,4777.2,8.70707639]
[1756006520620,0.71730001,4777.3,4777.2,5.70707639]
[1756006521138,0.71730001,4777.3,4777.2,2.19807639]
[1756006521293,0.71730001,4777.3,4777.1,0.001]
[1756006521500,0.4314,4777.2,4777.1,2.09430627]
[1756006521701,0.7173,4777.2,4777.1,2.09430627]
[1756006522366,1e-08,4777.3,4777.2,2.09327639]
[1756006522514,1e-08,4777.3,4777.2,5.39347639]
[1756006522844,1e-08,4777.3,4777.2,5.84027639]
[1756006524541,1e-08,4777.3,4777.2,5.92413539]
[1756006524740,0.01400001,4777.8,4777.7,2.09305732]
[1756006525039,0.01400001,4777.8,4777.7,9.6208756]
[1756006525349,0.01400001,4777.8,4777.7,10.1724756]
[1756006530349,0.01600001,4777.8,4777.7,10.1724756]
[1756006530564,1e-08,4779.8,4779.7,2.09218151]
[1756006530716,1e-08,4779.8,4779.7,18.64720249]
[1756006530917,0.04,4781.4,4779.8,5.09213774]
[1756006531223,1e-08,4780.8,4780.7,2.09174388]
[1756006531555,1e-08,4780.8,4780.7,10.75378276]
[1756006531756,1e-08,4780.8,4780.7,12.74928109]
[1756006532048,1e-08,4780.8,4780.7,13.27987409]
[1756006532229,1e-08,4780.8,4780.7,12.83307409]
[1756006532430,1e-08,4780.8,4780.7,12.93787409]
[1756006534149,0.28590001,4780.8,4780.7,10.64217576]
[1756006534351,0.28590001,4780.8,4780.7,7.64317576]
[1756006534551,0.71730001,4780.8,4780.7,7.55938276]
[1756006534889,0.71730001,4780.8,4780.7,7.00138276]
[1756006535178,0.71730001,4780.8,4780.7,10.55938276]
[1756006535378,0.71730001,4780.8,4780.7,10.36354388]
[1756006535582,0.71730001,4780.8,4780.7,5.4653994]
[1756006535744,0.71730001,4780.8,4780.7,5.3605994]
[1756006535949,0.71730001,4780.8,4780.7,7.45234328]
[1756006536579,0.28590001,4780.8,4780.7,7.45234328]
[1756006536880,0.28590001,4780.8,4780.7,7.55714328]
[1756006538083,1e-08,4780.8,4780.7,12.26903964]
[1756006538875,1e-08,4780.8,4780.7,12.92903964]
[1756006540684,1e-08,4780.8,4780.7,13.01282664]
[1756006542205,1e-08,4780.8,4780.7,13.0213573]
[1756006543292,1e-08,4781.4,4780.8,3.66]
[1756006543610,1e-08,4781.4,4781.3,0.3002]
[1756006543905,1e-08,4781.4,4781.3,7.16313006]
[1756006544802,1e-08,4781.4,4781.3,9.70141145]
[1756006545310,1e-08,4781.4,4781.3,9.50728139]
[1756006545461,1e-08,4781.4,4781.3,11.07027782]
[1756006545662,1e-08,4781.4,4781.3,10.62347782]
[1756006546662,1e-08,4781.4,4781.3,10.62047782]
[1756006548793,1e-08,4781.4,4781.3,10.62044612]
[1756006550510,0.30970001,4781.4,4781.3,10.31724612]
[1756006550977,0.30970001,4781.4,4781.3,10.31624612]
[1756006551880,1e-08,4781.4,4781.3,10.31624612]
[1756006552469,0.30970001,4781.4,4781.3,10.31624612]
[1756006553175,0.30970001,4781.4,4781.3,10.31424612]
[1756006553371,0.30970001,4781.4,4781.3,10.31324612]
[1756006553881,0.75300001,4781.4,4781.3,10.31324612]
[1756006554081,0.75300001,4781.4,4781.3,5.39019731]
[1756006554286,0.75300001,4781.4,4781.3,8.94419731]
[1756006555307,0.75300001,4781.4,4781.3,8.75028139]
[1756006555608,0.75300001,4781.4,4781.3,8.94486151]
[1756006556684,0.30970001,4781.4,4781.3,8.94486151]
[1756006557708,1e-08,4781.4,4781.3,9.26006151]
[1756006558309,1e-08,4781.4,4781.3,8.94486151]
[1756006558511,1e-08,4781.4,4781.3,9.26006151]
[1756006558733,1e-08,4781.4,4781.3,10.60438833]
[1756006558879,1e-08,4781.9,4781.7,3.0]
[1756006559076,1e-08,4781.9,4781.8,5.67178012]
[1756006559326,1e-08,4781.9,4781.8,9.78634723]
[1756006559485,1e-08,4781.9,4781.8,10.25724723]
[1756006560436,1e-08,4781.9,4781.8,9.78634723]
[1756006560952,1e-08,4781.9,4781.8,10.25724723]
[1756006562645,1e-08,4781.9,4781.8,10.27724723]
[1756006564339,1e-08,4781.9,4781.8,10.08266711]
[1756006565269,1e-08,4781.9,4781.8,13.08266711]
[1756006567589,1e-08,4781.9,4781.8,13.06266711]
[1756006570986,0.30970001,4781.9,4781.8,12.26956711]
[1756006572950,0.30970001,4781.9,4781.8,8.72256711]
[1756006573151,0.30970001,4781.9,4781.8,12.26856711]
[1756006574086,1e-08,4781.9,4781.8,8.72256711]
[1756006574386,1e-08,4781.9,4781.8,12.26756711]
[1756006574888,1e-08,4781.9,4781.8,12.58276711]
[1756006575182,1e-08,4781.9,4781.8,13.05366711]
[1756006575687,0.002,4782.9,4782.7,2.09086917]
[1756006575888,0.002,4782.9,4782.7,10.55875609]
[1756006576072,0.002,4782.9,4782.7,7.01275609]
[1756006576266,0.002,4782.9,4782.7,10.87395609]
[1756006576664,0.3297,4782.8,4782.7,10.55875609]
[1756006577762,0.02,4782.8,4782.7,10.55875609]
[1756006578194,0.3297,4782.8,4782.7,10.55875609]
[1756006580287,0.02,4782.8,4782.7,10.55875609]
[1756006580488,0.308,4782.8,4782.7,10.55875609]
[1756006580788,0.31,4782.8,4782.7,10.55875609]
[1756006581356,0.022,4782.8,4782.7,10.55875609]
[1756006583765,0.022,4782.8,4782.7,10.85045609]
[1756006584296,0.022,4782.8,4782.7,10.55875609]
[1756006585208,0.002,4783.3,4783.2,2.09065061]
[1756006585372,0.002,4783.3,4783.2,9.13871567]
[1756006585570,0.002,4783.3,4783.2,9.24351567]
[1756006589080,0.002,4783.3,4783.2,9.53521567]
[1756006589809,0.002,4783.3,4783.2,9.24351567]
[1756006591493,0.002,4783.3,4783.2,5.70451567]
[1756006591804,0.002,4783.3,4783.2,9.23951567]
[1756006593511,0.29,4783.3,4783.2,9.23951567]
[1756006593694,0.29,4783.3,4783.2,5.70451567]
[1756006593901,0.29,4783.3,4783.2,9.23851567]
[1756006596183,0.29,4783.3,4783.2,9.23751567]
[1756006596907,0.29,4783.3,4783.2,5.70451567]
[1756006597081,0.29,4783.3,4783.2,8.72745061]
[1756006597282,0.002,4783.3,4783.2,9.01915061]
[1756006597604,0.29,4783.3,4783.2,8.72745061]
[1756006597776,0.29,4783.3,4783.2,5.19545061]
[1756006597982,0.29,4783.3,4783.2,8.72745061]
[1756006598312,0.29,4783.3,4783.2,8.72645061]
[1756006599583,0.002,4783.3,4783.2,8.72645061]
[1756006599819,0.002,4783.3,4783.2,9.85357739]
[1756006601689,0.002,4783.3,4783.2,9.93733939]
[1756006602090,0.002,4783.3,4783.2,10.22903939]
[1756006602428,0.002,4783.3,4783.2,10.14527739]
[1756006603401,0.002,4783.3,4783.2,9.85357739]
[1756006605327,0.4802,4783.3,4783.2,5.72245061]
[1756006607116,0.4802,4783.3,4783.2,3.527]
[1756006607320,0.4802,4783.3,4783.2,2.09065061]
[1756006607549,0.4802,4783.3,4782.9,3.527]
[1756006607856,0.0525,4783.3,4783.2,2.09065061]
[1756006608050,0.002,4783.3,4783.2,5.72345061]
[1756006608251,0.002,4783.3,4783.2,6.79646897]
[1756006608877,0.002,4783.3,4783.2,6.50476897]
[1756006609355,0.002,4783.3,4783.2,6.80616897]
[1756006610332,0.002,4783.3,4783.2,6.50476897]
[1756006610523,0.002,4783.3,4783.2,5.72345061]
[1756006610729,0.2936,4783.3,4783.2,5.72345061]
[1756006610923,0.2936,4783.3,4783.2,5.72445061]
[1756006611527,0.002,4783.3,4783.2,6.02585061]
[1756006612249,0.002,4783.3,4783.2,5.72445061]
[1756006613676,0.002,4783.3,4783.2,2.19545061]
[1756006613972,0.002,4783.3,4783.2,6.02485061]
[1756006614756,0.002,4783.3,4783.2,6.47695061]
[1756006615385,0.002,4783.3,4783.2,6.02485061]
[1756006617582,0.002,4783.3,4783.2,6.47695061]
[1756006617784,0.002,4783.3,4783.2,6.87048361]
[1756006623059,0.002,4783.3,4783.2,6.86648361]
[1756006623854,0.002,4783.3,4783.2,6.41438361]
[1756006624057,0.002,4783.3,4783.2,6.11298361]
[1756006624688,0.2936,4783.3,4783.2,2.19545061]
[1756006624952,0.2936,4783.3,4783.2,5.71645061]
[1756006624953,0.7216,4783.3,4783.2,5.71645061]
[1756006625152,0.002,4783.3,4783.2,6.01785061]
[1756006626085,0.2936,4783.3,4783.2,5.71645061]
[1756006629784,0.2936,4783.3,4783.2,5.71445061]
[1756006630096,0.2936,4783.3,4783.2,2.19545061]
[1756006630282,0.2936,4783.3,4783.2,5.71345061]
[1756006630683,0.2936,4783.3,4783.2,2.19545061]
[1756006630938,0.2936,4783.3,4783.2,5.71345061]
[1756006632285,0.002,4783.3,4783.2,5.71345061]
[1756006633060,0.002,4783.3,4783.2,2.19545061]
[1756006633218,0.002,4783.3,4783.2,5.71245061]
[1756006634918,0.0524,4783.3,4783.2,5.71245061]
[1756006635119,0.4767,4783.3,4783.2,5.71145061]
[1756006635620,0.0524,4783.3,4783.2,5.71145061]
[1756006635819,0.2936,4783.3,4783.2,5.71145061]
[1756006636044,0.002,4783.3,4783.2,5.71145061]
[1756006636622,0.2925,4783.3,4783.2,5.71145061]
[1756006637244,0.479,4783.3,4783.2,5.71145061]
[1756006637451,0.479,4783.3,4783.2,2.19545061]
[1756006637452,0.2925,4783.3,4783.2,2.19545061]
[1756006637765,0.479,4783.3,4783.2,5.71045061]
[1756006638268,0.2925,4783.3,4783.2,5.71045061]
[1756006639741,0.2925,4783.3,4783.2,2.19545061]
[1756006639919,0.2925,4783.3,4783.2,5.71045061]
[1756006640654,0.002,4783.3,4783.2,6.02135061]
[1756006641020,0.2958,4783.3,4783.2,5.71045061]
[1756006642141,0.002,4783.3,4783.2,5.71045061]
[1756006642722,0.002,4783.3,4783.2,6.46305061]
[1756006643343,0.002,4783.3,4783.2,6.02135061]
[1756006643538,0.002,4783.3,4783.2,5.71045061]
[1756006644260,0.002,4783.3,4783.2,6.02135061]
[1756006644464,0.002,4783.3,4783.2,5.71045061]
[1756006644651,0.2958,4783.3,4783.2,2.19545061]
[1756006644854,0.2958,4783.3,4783.2,5.71045061]
[1756006645031,0.2958,4783.3,4783.2,2.19545061]
[1756006645232,0.2958,4783.3,4783.2,5.71045061]
[1756006648274,0.2958,4783.3,4783.2,2.19545061]
[1756006648479,0.7295,4783.3,4783.2,5.71045061]
[1756006648679,0.2958,4783.3,4783.2,0.1048]
[1756006648974,0.2958,4783.3,4783.0,3.515]
[1756006648975,0.7295,4783.3,4783.0,3.515]
[1756006649175,0.8343,4783.3,4783.0,5.60571958]
[1756006649376,0.4337,4783.2,4783.1,2.09069431]
[1756006649579,0.7275,4783.2,4783.1,2.09069431]
[1756006649776,0.7275,4783.2,4783.0,2.09073305]
[1756006649978,0.7275,4783.2,4782.8,2.09182015]
[1756006649979,0.66,4783.0,4782.8,0.001]
[1756006650179,1.28170343,4782.9,4782.8,0.001]
[1756006650382,1.71540343,4782.9,4782.8,0.001]
[1756006650549,0.7275,4782.9,4782.8,0.001]
[1756006653586,3.47828174,4782.9,4782.8,0.001]
[1756006653881,7.12318042,4782.9,4782.8,0.001]
[1756006654183,7.45041892,4782.9,4782.8,0.001]
[1756006654386,10.78623109,4782.9,4782.8,0.001]
[1756006654587,0.6210385,4782.9,4782.8,0.001]
[1756006654952,0.3272385,4782.9,4782.8,0.3119]
[1756006655377,1.61,4783.3,4782.8,0.3119]
[1756006655795,0.2938,4782.9,4782.8,0.001]
[1756006656473,0.165,4783.2,4782.8,0.001]
[1756006656673,0.165,4783.2,4782.8,0.7536]
[1756006656988,0.002,4783.3,4782.8,0.7536]
[1756006658167,0.002,4783.3,4782.8,0.3119]
[1756006659978,0.1048,4783.2,4782.8,0.3119]
[1756006661278,0.1048,4783.2,4782.8,0.001]
[1756006662688,0.2938,4782.9,4782.8,0.001]
[1756006662900,1.44282486,4782.9,4782.8,0.001]
[1756006663270,1.87652486,4782.9,4782.8,0.001]
[1756006663675,1.44282486,4782.9,4782.8,0.001]
[1756006664000,1.14902486,4782.9,4782.8,0.001]
[1756006664177,0.1048,4782.9,4782.8,0.001]
[1756006664581,0.3986,4782.9,4782.8,0.001]
[1756006666500,0.8323,4782.9,4782.8,0.001]
[1756006671888,0.3986,4782.9,4782.8,0.001]
[1756006673890,0.1048,4782.9,4782.8,0.316]
[1756006674387,1.42498343,4782.9,4782.8,0.001]
[1756006675532,0.1048,4782.9,4782.8,0.7442]
[1756006676024,0.1048,4782.9,4782.8,2.83502545]
[1756006676593,0.1048,4782.9,4782.8,2.40682545]
[1756006676794,0.1048,4782.9,4782.8,2.83502545]
[1756006677840,0.1068,4783.2,4783.0,2.09069996]
[1756006678041,0.1068,4783.2,4783.1,0.315]
[1756006678240,0.1068,4783.2,4783.1,0.7432]
[1756006678431,0.1068,4783.2,4783.1,0.315]
[1756006680253,0.1068,4783.2,4782.8,2.09179012]
[1756006680554,0.1068,4783.2,4782.9,2.09077902]
[1756006680723,0.1068,4783.2,4782.9,0.4282]
[1756006681218,0.1068,4783.2,4782.8,2.09182398]
[1756006682359,0.1068,4783.2,4782.9,2.09077732]
[1756006682559,0.1068,4783.2,4782.9,2.0907773]
[1756006682851,0.1068,4783.2,4783.0,2.09073251]
[1756006683050,0.1068,4783.2,4783.1,0.315]
[1756006683256,0.1068,4783.2,4783.1,0.7432]
[1756006683420,0.1068,4783.2,4783.1,2.83389431]
[1756006683621,0.1068,4783.2,4783.1,0.315]
[1756006684233,0.1068,4783.2,4782.8,3.9542]
[1756006684234,0.1068,4783.2,4782.8,6.04498791]
[1756006684432,0.1068,4783.2,4782.9,2.09077939]
[1756006685024,0.1068,4783.2,4783.0,2.09073669]
[1756006685556,0.1068,4783.2,4782.9,2.09077905]
[1756006685760,0.1068,4783.2,4782.9,2.51897905]
[1756006686254,0.1068,4783.2,4782.9,2.09077905]
[1756006687171,0.66,4782.9,4782.8,0.021]
[1756006687327,2.74624343,4782.9,4782.8,0.021]
[1756006687533,2.85104343,4782.9,4782.8,0.021]
[1756006690477,2.38754343,4782.9,4782.8,0.021]
[1756006691341,2.85434343,4782.9,4782.8,0.021]
[1756006691542,2.85434343,4782.9,4782.8,0.001]
[1756006692172,2.38754343,4782.9,4782.8,0.001]
[1756006692557,1.42524343,4782.9,4782.8,0.316]
[1756006692872,0.002,4783.2,4783.1,2.09069431]
[1756006693049,0.1068,4783.2,4783.1,2.40569431]
[1756006693252,0.1068,4783.2,4783.1,2.83389431]
[1756006694673,0.1068,4783.2,4783.1,6.36289431]
[1756006695679,0.1068,4783.2,4783.1,6.36189431]
[1756006696882,0.1068,4783.2,4783.1,2.83389431]
[1756006697076,0.1068,4783.2,4783.1,6.36089431]
[1756006697759,0.1068,4783.2,4783.1,2.83389431]
[1756006698083,0.1068,4783.2,4783.1,6.36089431]
[1756006699977,0.1068,4783.2,4783.1,6.35989431]
[1756006702903,0.1068,4783.2,4783.1,5.93169431]
[1756006703187,0.1068,4783.2,4783.1,2.40569431]
[1756006703387,0.1068,4783.2,4783.1,6.81654097]
[1756006703781,0.002,4783.2,4783.1,6.81654097]
[1756006703976,0.002,4783.2,4783.1,6.92134097]
[1756006705901,0.002,4783.2,4783.1,3.39834097]
[1756006706104,0.002,4783.2,4783.1,6.92234097]
[1756006706259,0.002,4783.2,4783.1,6.92134097]
[1756006715090,0.002,4783.2,4783.1,6.91734097]
[1756006717775,0.002,4783.2,4783.1,7.00110297]
[1756006721308,0.002,4783.2,4783.1,6.99910297]
[1756006724197,0.002,4783.2,4783.1,14.95013725]
[1756006731090,0.002,4783.2,4783.1,14.51203725]
[1756006731508,0.002,4783.2,4783.1,14.94083725]
[1756006738596,0.002,4783.2,4783.1,10.99503725]
[1756006738923,0.002,4783.2,4783.1,14.51203725]
[1756006739932,0.002,4783.2,4783.1,16.11903725]
[1756006740131,0.002,4783.2,4783.1,12.60203725]
[1756006740306,0.002,4783.2,4783.1,16.11903725]
[1756006740532,0.002,4783.2,4783.1,16.11803725]
[1756006741318,0.002,4783.2,4783.1,16.54683725]
[1756006749231,0.002,4783.2,4783.1,12.60203725]
[1756006749628,0.002,4783.2,4783.1,15.80303725]
[1756006750162,0.002,4783.2,4783.1,15.71927525]
[1756006750363,0.002,4783.2,4783.1,16.00957525]
[1756006750660,0.002,4783.2,4783.1,16.43837525]
[1756006752153,0.002,4783.2,4783.1,16.00957525]
[1756006752344,0.002,4783.2,4783.1,15.26952859]
[1756006752548,0.002,4783.2,4783.1,15.98862859]
[1756006753270,0.002,4783.2,4783.1,15.55982859]
[1756006753676,0.002,4783.2,4783.1,15.98862859]
[1756006753972,0.002,4783.2,4783.1,15.26952859]
[1756006754152,0.3149,4783.2,4783.1,15.26952859]
[1756006754976,0.002,4783.2,4783.1,15.55982859]
[1756006755178,0.002,4783.2,4783.1,15.89860391]
[1756006755972,0.002,4783.2,4783.1,16.32740391]
[1756006756976,0.002,4783.2,4783.1,15.89860391]
[1756006759670,0.002,4783.2,4783.1,16.34910391]
[1756006762285,0.002,4783.2,4783.1,15.89860391]
[1756006762484,0.002,4783.2,4783.1,16.34910391]
[1756006770390,0.002,4783.2,4783.1,15.12117419]
[1756006773215,1e-08,4783.3,4783.2,2.09065061]
[1756006773417,1e-08,4783.3,4783.2,7.97062861]
[1756006773713,1e-08,4783.4,4783.3,2.0906069]
[1756006773916,1e-08,4783.4,4783.3,6.3437069]
[1756006774239,1e-08,4783.7,4783.4,5.09056319]
[1756006774422,1e-08,4783.7,4783.6,12.10118035]
[1756006774713,1e-08,4783.7,4783.6,12.20598035]
[1756006775134,0.02,4784.8,4783.8,2.09038839]
[1756006775423,0.02,4784.8,4783.8,8.89298839]
[1756006775424,0.435,4784.7,4783.8,8.89298839]
[1756006776045,0.02,4784.8,4783.8,8.89298839]
[1756006776340,0.435,4784.5,4783.8,16.8318031]
[1756006776634,0.435,4784.5,4783.8,18.39317912]
[1756006777336,0.435,4784.7,4783.8,18.84367912]
[1756006777839,0.083755,4784.1,4783.8,18.39317912]
[1756006778249,0.435,4784.5,4783.8,18.39317912]
[1756006778737,0.083755,4784.0,4783.8,18.39317912]
[1756006779736,0.083755,4784.0,4783.8,18.10557912]
[1756006779941,0.435,4784.3,4783.8,18.10557912]
[1756006780358,0.083756,4784.1,4783.8,18.10557912]
[1756006781955,0.2986,4783.9,4783.8,18.10557912]
[1756006782131,0.2986,4783.9,4783.8,18.12557912]
[1756006782522,0.2986,4783.9,4783.8,14.61057912]
[1756006782722,0.2986,4783.9,4783.8,18.12457912]
[1756006783933,0.002,4783.9,4783.8,18.12457912]
[1756006784320,0.2986,4783.9,4783.8,18.12457912]
[1756006786528,0.2986,4783.9,4783.8,18.10457912]
[1756006787465,0.002,4783.9,4783.8,18.10457912]
[1756006790638,0.002,4783.9,4783.8,18.84887912]
[1756006792879,0.002,4783.9,4783.8,18.39217912]
[1756006793858,0.002,4783.9,4783.8,18.10457912]
[1756006795594,0.29,4783.9,4783.8,5.09038839]
[1756006795755,0.7458,4783.9,4783.8,8.60238839]
[1756006795954,1.0358,4783.9,4783.8,8.60238839]
[1756006797479,0.29,4783.9,4783.8,10.20938839]
[1756006797658,0.29,4783.9,4783.8,10.21038839]
[1756006798882,0.29,4783.9,4783.8,6.69838839]
[1756006798883,0.6015,4783.9,4783.8,6.69838839]
[1756006799198,0.6015,4783.9,4783.8,10.21038839]
[1756006800283,0.6015,4783.9,4783.8,6.69838839]
[1756006800483,0.6015,4783.9,4783.8,10.21038839]
[1756006801863,0.29,4783.9,4783.8,10.21038839]
[1756006802305,0.6015,4783.9,4783.8,10.21038839]
[1756006803507,0.29,4783.9,4783.8,10.21038839]
[1756006804410,0.002,4783.9,4783.8,11.75477481]
[1756006804909,0.002,4783.9,4783.8,12.21147481]
[1756006805092,0.002,4783.9,4783.8,11.75477481]
[1756006806007,0.002,4783.9,4783.8,12.31627481]
[1756006806707,0.002,4783.9,4783.8,11.85957481]
[1756006807501,0.002,4783.9,4783.8,12.31627481]
[1756006808105,0.002,4783.9,4783.8,12.40003081]
[1756006809716,0.002,4783.9,4783.8,11.94333081]
[1756006811986,0.002,4783.9,4783.8,11.62903081]
[1756006812196,0.002,4783.9,4783.8,11.62803081]
[1756006812497,0.1713,4783.9,4783.8,11.62803081]
[1756006812700,0.6242,4783.9,4783.8,11.54427481]
[1756006814279,0.1713,4783.9,4783.8,11.54427481]
[1756006814511,0.6271,4783.9,4783.8,8.03327481]
[1756006814702,0.6271,4783.9,4783.8,11.54427481]
[1756006814899,0.6271,4783.9,4783.8,8.03327481]
[1756006815103,0.1713,4783.9,4783.8,11.54427481]
[1756006816609,0.1713,4783.9,4783.8,12.17137481]
[1756006817618,0.1713,4783.9,4783.8,11.54427481]
[1756006817784,0.1713,4783.9,4783.8,10.76998839]
[1756006818700,0.1713,4783.9,4783.8,3.80318839]
[1756006818878,0.6369,4783.9,4783.8,7.20938839]
[1756006819900,0.6369,4783.9,4783.8,5.60138839]
[1756006820131,1.265248,4783.9,4783.8,3.511]
[1756006820413,1.4024528,4783.9,4783.8,0.001]
[1756006820622,1.5072528,4783.9,4783.8,3.511]
[1756006821410,1.5072528,4783.9,4783.8,0.001]
[1756006821609,1.5072528,4783.9,4783.8,3.511]
[1756006824929,1.5072528,4783.9,4783.8,0.001]
[1756006825130,1.5072528,4783.9,4783.8,3.511]
[1756006825836,1.5072528,4783.9,4783.8,0.001]
[1756006826006,1.5072528,4783.9,4783.8,3.511]
[1756006826943,0.002,4783.9,4783.8,5.89468839]
[1756006827133,0.002,4783.9,4783.8,6.35588839]
[1756006829616,0.002,4783.9,4783.8,6.46068839]
[1756006832047,0.002,4783.9,4783.8,2.95068839]
[1756006832256,0.002,4783.9,4783.8,6.46068839]
[1756006832431,0.002,4783.9,4783.8,6.97968333]
[1756006832758,0.002,4783.9,4783.8,2.19618839]
[1756006832915,0.4546,4783.9,4783.8,5.70618839]
[1756006833316,0.002,4783.9,4783.8,5.70618839]
[1756006833512,0.002,4783.9,4783.8,5.99948839]
[1756006833735,0.002,4783.9,4783.8,6.46068839]
[1756006833943,0.002,4783.9,4783.8,8.45626459]
[1756006835023,0.002,4783.9,4783.8,11.45626459]
[1756006835424,0.002,4783.9,4783.8,12.06896459]
[1756006837520,0.002,4783.9,4783.8,11.45626459]
[1756006840362,0.002,4783.9,4783.8,13.06326459]
[1756006845145,0.002,4784.2,4784.1,2.09025731]
[1756006845336,0.002,4784.2,4784.1,18.64861554]
[1756006845547,0.002,4784.2,4784.1,18.75341554]
[1756006845754,0.002,4784.2,4784.1,19.21461554]
[1756006848376,0.002,4784.2,4784.1,18.75341554]
[1756006849078,0.002,4784.2,4784.1,19.19531554]
[1756006849743,0.002,4784.2,4784.1,10.81270295]
[1756006851177,0.7677,4784.2,4784.1,7.01040295]
[1756006851379,0.2953,4784.2,4784.1,8.70305731]
[1756006851943,0.002,4784.2,4784.1,8.70305731]
[1756006852144,0.002,4784.2,4784.1,9.44405731]
[1756006857136,0.002,4784.2,4784.1,6.44405731]
[1756006857429,0.002,4784.2,4784.1,8.70305731]
[1756006857632,0.2953,4784.2,4784.1,8.70205731]
[1756006860241,0.2953,4784.2,4784.1,5.70205731]
[1756006860242,0.002,4784.2,4784.1,5.70205731]
[1756006863200,0.002,4784.2,4784.1,5.77645731]
[1756006863902,0.002,4784.2,4784.1,6.07555731]
[1756006864110,0.002,4784.2,4784.1,7.51750072]
[1756006868846,0.002,4784.2,4784.1,7.51650072]
[1756006869141,0.042,4784.4,4784.3,2.09016993]